{"text_format":"3","workbook":"xlsx","n_sheets":1,"sheets":["Заказ"],"read":"whole","date_system":"1900"}

{"sheet":"Заказ","index":0,"n_rows":41,"n_cols":11,"rows_kept":41,"merged":[[0,0,0,10],[1,0,1,10],[2,8,2,10],[3,0,3,10],[5,0,5,10]]}
[]
["Заказ A0010935 от 28.01.2021"]
[]
["МБОУ ООШ №2 г.Зубцова"]
[]
["Издательство «Просвещение IV вид»"]
[]
["№","Артикул","Код ФП","Дополнительная информация","Автор","Наименование","Год издания","Предмет","Кол-во","Цена,\nруб.","Сумма,\nруб."]
[1,"18-0381-03",null,null,"Пасечник В. В., Суматохин С. В., Калинова Г. С. и др. / Под ред. Пасечника В. В.","Биология. 5-6 классы. Учебное пособие. В 2 ч. Часть 2 (для слабовидящих обучающихся)",null,"Биология",1,1975.05,{"$f":"I9*J9","v":"0"}]
[2,"18-0380-03",null,null,"Пасечник В. В., Суматохин С. В., Калинова Г. С. и др. / Под ред. Пасечника В. В.","Биология. 5-6 классы. Учебное пособие. В 2 ч. Часть 1 (для слабовидящих обучающихся)",null,"Биология",1,2021.25,{"$f":"I10*J10","v":"0"}]
[3,"13-0981-02",null,null,"Никольский С. М., Потапов М. К., Решетников Н. Н. и др.","Математика. 6 класс. Учебное пособие. В 4 ч. Часть 4 (для слабовидящих обучающихся)",null,"Математика",1,2219.36,{"$f":"I11*J11","v":"0"}]
[4,"13-0980-02",null,null,"Никольский С. М., Потапов М. К., Решетников Н. Н. и др.","Математика. 6 класс. Учебное пособие. В 4 ч. Часть 3 (для слабовидящих обучающихся)",null,"Математика",1,1855.59,{"$f":"I12*J12","v":"0"}]
[5,"13-0979-02",null,null,"Никольский С. М., Потапов М. К., Решетников Н. Н. и др.","Математика. 6 класс. Учебное пособие. В 4 ч. Часть 2 (для слабовидящих обучающихся)",null,"Математика",1,2219.36,{"$f":"I13*J13","v":"0"}]
[6,"13-0978-02",null,null,"Никольский С. М., Потапов М. К., Решетников Н. Н. и др.","Математика. 6 класс. Учебное пособие. В 4 ч. Часть 1 (для слабовидящих обучающихся)",null,"Математика",1,{"v":2413.4,"d":"2413.40"},{"$f":"I14*J14","v":"0"}]
[7,"19-0534-02",null,null,"Алексеев А. И., Николина В. В., Липкина Е. К. и др.","География. 5-6 классы. Учебное пособие. В 3 ч. Часть 3 (для слабовидящих обучающихся)",null,"География",1,{"v":1455.3,"d":"1455.30"},{"$f":"I15*J15","v":"0"}]
[8,"19-0533-02",null,null,"Алексеев А. И., Николина В. В., Липкина Е. К. и др.","География. 5-6 классы. Учебное пособие. В 3 ч. Часть 2 (для слабовидящих обучающихся)",null,"География",1,1758.57,{"$f":"I16*J16","v":"0"}]
[9,"19-0532-02",null,null,"Алексеев А. И., Николина В. В., Липкина Е. К. и др.","География. 5-6 классы. Учебное пособие. В 3 ч. Часть 1 (для слабовидящих обучающихся)",null,"География",1,1758.57,{"$f":"I17*J17","v":"0"}]
[10,"16-0436-01",null,null,"Боголюбов Л.Н., Виноградова Н.Ф., Городецкая Н.И. и др.","Обществознание. 6 класс. Учебное пособие. В 2 ч. Часть 2 (для слабовидящих обучающихся)",null,"Обществознание",1,1782.77,{"$f":"I18*J18","v":"0"}]
[11,"16-0435-01",null,null,"Боголюбов Л.Н., Виноградова Н.Ф., Городецкая Н.И. и др.","Обществознание. 6 класс. Учебное пособие. В 2 ч. Часть 1 (для слабовидящих обучающихся)",null,"Обществознание",1,1782.77,{"$f":"I19*J19","v":"0"}]
[12,"15-0927-02",null,null,"Агибалова Е. В., Донской Г. М. / Под ред. Сванидзе А. А.","Всеобщая история. История Средних веков. 6 класс. Учебное пособие. В 3 ч. Часть 3 (для слабовидящих обучающихся)",null,"Всеобщая история",1,2110.24,{"$f":"I20*J20","v":"0"}]
[13,"15-0925-02",null,null,"Агибалова Е. В., Донской Г. М. / Под ред. Сванидзе А. А.","Всеобщая история. История Средних веков. 6 класс. Учебное пособие. В 3 ч. Часть 2 (для слабовидящих обучающихся)",null,"Всеобщая история",1,1976.81,{"$f":"I21*J21","v":"0"}]
[14,"15-0924-02",null,null,"Агибалова Е. В., Донской Г. М. / Под ред. Сванидзе А. А.","Всеобщая история. История Средних веков. 6 класс. Учебное пособие. В 3 ч. Часть 1 (для слабовидящих обучающихся)",null,"Всеобщая история",1,2110.24,{"$f":"I22*J22","v":"0"}]
[15,"15-0959-02",null,null,"Арсентьев Н. М., Данилов А. А., Стефанович П. С. и др. / Под ред. Торкунова А. В.","История России. 6 класс. Учебное пособие. В 5 ч. Часть 5 (для слабовидящих обучающихся)",null,"История России",1,1382.59,{"$f":"I23*J23","v":"0"}]
[16,"15-0958-02",null,null,"Арсентьев Н. М., Данилов А. А., Стефанович П. С. и др. / Под ред. Торкунова А. В.","История России. 6 класс. Учебное пособие. В 5 ч. Часть 4 (для слабовидящих обучающихся)",null,"История России",1,1394.69,{"$f":"I24*J24","v":"0"}]
[17,"15-0957-02",null,null,"Арсентьев Н. М., Данилов А. А., Стефанович П. С. и др. / Под ред. Торкунова А. В.","История России. 6 класс. Учебное пособие. В 5 ч. Часть 3 (для слабовидящих обучающихся)",null,"История России",1,727.65,{"$f":"I25*J25","v":"0"}]
[18,"15-0956-02",null,null,"Арсентьев Н. М., Данилов А. А., Стефанович П. С. и др. / Под ред. Торкунова А. В.","История России. 6 класс. Учебное пособие. В 5 ч. Часть 2 (для слабовидящих обучающихся)",null,"История России",1,1552.32,{"$f":"I26*J26","v":"0"}]
[19,"15-0955-02",null,null,"Арсентьев Н. М., Данилов А. А., Стефанович П. С. и др. / Под ред. Торкунова А. В.","История России. 6 класс. Учебное пособие. В 5 ч. Часть 1 (для слабовидящих обучающихся)",null,"История России",1,982.41,{"$f":"I27*J27","v":"0"}]
[20,"24-3931-01",null,null,"Ваулина Ю. Е., Дули Д., Подоляко О. Е. и др.","Английский язык. 6 класс. Учебное пособие. В 4 ч. Часть 4 (для слабовидящих обучающихся)",null,"Английский язык",1,1491.71,{"$f":"I28*J28","v":"0"}]
[21,"24-3930-01",null,null,"Ваулина Ю. Е., Дули Д., Подоляко О. Е. и др.","Английский язык. 6 класс. Учебное пособие. В 4 ч. Часть 3 (для слабовидящих обучающихся)",null,"Английский язык",1,1491.71,{"$f":"I29*J29","v":"0"}]
[22,"24-3929-01",null,null,"Ваулина Ю. Е., Дули Д., Подоляко О. Е. и др.","Английский язык. 6 класс. Учебное пособие. В 4 ч. Часть 2 (для слабовидящих обучающихся)",null,"Английский язык",1,1491.71,{"$f":"I30*J30","v":"0"}]
[23,"24-3928-01",null,null,"Ваулина Ю. Е., Дули Д., Подоляко О. Е. и др.","Английский язык. 6 класс. Учебное пособие. В 4 ч. Часть 1 (для слабовидящих обучающихся)",null,"Английский язык",1,1491.71,{"$f":"I31*J31","v":"0"}]
[24,"12-0753-02",null,null,"Полухина В. П., Коровина В. Я., Журавлев В. П. и др.","Литература. 6 класс. Учебное пособие. В 5 ч. Часть 5 (для слабовидящих обучающихся)",null,"Литература",1,1334.08,{"$f":"I32*J32","v":"0"}]
[25,"12-0752-02",null,null,"Полухина В. П., Коровина В. Я., Журавлев В. П. и др.","Литература. 6 класс. Учебное пособие. В 5 ч. Часть 4 (для слабовидящих обучающихся)",null,"Литература",1,{"v":1455.3,"d":"1455.30"},{"$f":"I33*J33","v":"0"}]
[26,"12-0751-02",null,null,"Полухина В. П., Коровина В. Я., Журавлев В. П. и др.","Литература. 6 класс. Учебное пособие. В 5 ч. Часть 3 (для слабовидящих обучающихся)",null,"Литература",1,{"v":1455.3,"d":"1455.30"},{"$f":"I34*J34","v":"0"}]
[27,"12-0750-02",null,null,"Полухина В. П., Коровина В. Я., Журавлев В. П. и др.","Литература. 6 класс. Учебное пособие. В 5 ч. Часть 2 (для слабовидящих обучающихся)",null,"Литература",1,{"v":1455.3,"d":"1455.30"},{"$f":"I35*J35","v":"0"}]
[28,"12-0749-02",null,null,"Полухина В. П., Коровина В. Я., Журавлев В. П. и др.","Литература. 6 класс. Учебное пособие. В 5 ч. Часть 1 (для слабовидящих обучающихся)",null,"Литература",1,{"v":1455.3,"d":"1455.30"},{"$f":"I36*J36","v":"0"}]
[29,"11-1260-01",null,null,"Баранов М. Т., Ладыженская Т. А., Тростенцова Л. А. и др.","Русский язык. 6 класс. Учебное пособие. В 4 ч. Часть 4 (для слабовидящих обучающихся)",null,"Русский язык",1,1491.71,{"$f":"I37*J37","v":"0"}]
[30,"11-1259-01",null,null,"Баранов М. Т., Ладыженская Т. А., Тростенцова Л. А. и др.","Русский язык. 6 класс. Учебное пособие. В 4 ч. Часть 3 (для слабовидящих обучающихся)",null,"Русский язык",1,1491.71,{"$f":"I38*J38","v":"0"}]
[31,"11-1258-01",null,null,"Баранов М. Т., Ладыженская Т. А., Тростенцова Л. А. и др.","Русский язык. 6 класс. Учебное пособие. В 4 ч. Часть 2 (для слабовидящих обучающихся)",null,"Русский язык",1,1491.71,{"$f":"I39*J39","v":"0"}]
[32,"11-1257-01",null,null,"Баранов М. Т., Ладыженская Т. А., Тростенцова Л. А. и др.","Русский язык. 6 класс. Учебное пособие. В 4 ч. Часть 1 (для слабовидящих обучающихся)",null,"Русский язык",1,1491.71,{"$f":"I40*J40","v":"0"}]
[{"$nulls":7},"ИТОГО:",{"$f":"SUM(I9:I40)","v":"0"},null,{"$f":"SUM(K9:K40)","v":"0"}]